bitfinex/quotes_SOLUSD_20240716
["timestamp","ask_amount","ask_price","bid_price","bid_amount"]
[1721120925524,6.75022493,155.03,154.93,1.29075281]
[1721120925925,6.75022493,155.03,154.94,16.1345]
[1721120926236,6.4513,155.01,154.96,6.4531]
[1721120926440,6.75022493,155.03,154.97,17.42214112]
[1721120926642,0.97115088,155.03,154.98,6.4524]
[1721120926827,0.97115088,155.03,154.97,16.1316]
[1721120927029,0.97115088,155.03,154.94,22.5889]
[1721120927232,0.97115088,155.03,154.94,16.1352]
[1721120927742,10.0,155.02,154.94,16.1352]
[1721120927914,0.97115088,155.01,154.94,16.1352]
[1721120928312,6.4516,155.0,154.94,22.5891]
[1721120928536,0.97115088,154.99,154.94,22.5891]
[1721120928729,0.97115088,154.98,154.94,22.5891]
[1721120929220,0.97115088,154.98,154.95,6.4535]
[1721120929721,0.97115088,154.99,154.95,6.4535]
[1721120929922,0.97115088,154.98,154.95,6.4535]
[1721120931045,0.97115088,154.99,154.95,6.4535]
[1721120931245,0.97115088,154.98,154.95,6.4535]
[1721120932123,0.97115088,154.99,154.95,6.4535]
[1721120932433,0.97115088,154.98,154.95,6.4535]
[1721120933229,0.97115088,154.99,154.96,6.4531]
[1721120933424,0.97115088,154.98,154.96,6.4531]
[1721120933741,6.4512,155.01,154.96,6.4531]
[1721120934731,0.97115088,155.0,154.95,6.4536]
[1721120935119,0.97115088,155.0,154.94,16.1352]
[1721120935321,0.97115088,155.01,154.98,6.4521]
[1721120935531,0.97115088,155.03,154.98,6.4521]
[1721120936051,7.42185088,155.03,154.97,22.5846]
[1721120936348,6.4509,155.02,154.97,22.5846]
[1721120936646,0.97115088,155.01,154.98,6.4523]
[1721120937440,6.4508,155.02,154.97,16.1318]
[1721120937656,6.4517,155.0,154.94,6.4538]
[1721120937827,0.97115088,155.01,154.97,6.4527]
[1721120938925,7.42255088,155.01,154.96,16.1329]
[1721120939124,7.42275088,155.0,154.96,16.1329]
[1721120939321,0.97115088,155.0,154.93,22.5901]
[1721120939658,6.4529,154.97,154.93,16.136]
[1721120939836,0.97115088,154.96,154.93,16.136]
[1721120940040,0.97115088,154.95,154.89,22.5107]
[1721120940442,0.97115088,154.95,154.91,6.4549]
[1721120940646,0.97115088,154.94,154.89,16.1396]
[1721120940841,7.42525088,154.94,154.89,22.5957]
[1721120943053,6.455,154.92,154.85,16.1438]
[1721120943234,0.97115088,154.91,154.85,16.1438]
[1721120943434,0.97115088,154.91,154.87,6.4566]
[1721120945334,6.4562,154.89,154.85,16.1438]
[1721120945537,0.97115088,154.88,154.85,22.6016]
[1721120945946,0.97115088,154.88,154.86,6.4574]
[1721120946244,0.97115088,154.88,154.85,22.6016]
[1721120946443,0.97115088,154.88,154.85,16.1438]
[1721120947160,0.97115088,154.88,154.85,22.6016]
[1721120947350,0.97115088,154.88,154.85,16.1438]
[1721120947755,7.42785088,154.88,154.83,6.4586]
[1721120948747,6.4322,154.9,154.83,16.1459]
[1721120948964,0.97115088,154.89,154.83,16.1459]
[1721120949269,7.42735088,154.89,154.84,6.4578]
[1721120949454,0.97115088,154.89,154.85,6.4577]
[1721120949643,0.97115088,154.89,154.86,6.4574]
[1721120950150,0.97115088,154.89,154.84,6.4578]
[1721120950346,0.97115088,154.89,154.83,16.1459]
[1721120950581,0.97115088,154.89,154.86,6.4573]
[1721120950748,0.97115088,154.89,154.84,6.4579]
[1721120951150,7.42745088,154.89,154.84,6.4579]
[1721120951547,6.4566,154.88,154.84,6.4579]
[1721120951748,0.97115088,154.87,154.84,6.4579]
[1721120952452,0.97115088,154.87,154.85,6.4578]
[1721120952647,0.97115088,154.89,154.86,6.457]
[1721120952864,0.97115088,154.89,154.85,16.1438]
[1721120953175,16.3054,154.93,154.86,6.4574]
[1721120953176,0.97115088,154.88,154.86,6.4574]
[1721120953378,0.97115088,154.92,154.86,6.4574]
[1721120953874,6.4557,154.91,154.86,6.4574]
[1721120954087,0.97115088,154.9,154.86,6.4574]
[1721120954274,0.97115088,154.89,154.86,6.4574]
[1721120954572,0.97115088,154.89,154.85,16.1438]
[1721120955371,7.42735088,154.89,154.85,16.1438]
[1721120956495,10.0,154.91,154.85,16.1438]
[1721120956496,6.74390932,154.95,154.86,32.73463067]
[1721120956661,6.74390932,154.95,154.86,0.1735929]
[1721120957191,6.74390932,154.95,154.87,0.17358169]
[1721120957498,280.79824336,155.01,154.88,16.1414]
[1721120957499,15.3521,154.96,154.88,16.1414]
[1721120957670,6.4537,154.95,154.9,6.4557]
[1721120957878,15.3521,154.96,154.89,6.4561]
[1721120958065,15.3521,154.96,154.88,16.1414]
[1721120958589,6.4549,154.92,154.88,16.1414]
[1721120959273,10.0,154.94,154.85,16.1443]
[1721120959465,41.4862,154.96,154.85,16.1443]
[1721120959670,47.7419,154.96,154.85,16.1443]
[1721120959967,6.4549,154.92,154.87,6.4569]
[1721120960177,47.7419,154.96,154.83,39.69773538]
[1721120960383,47.7419,154.96,154.87,16.1415]
[1721120960565,6.4548,154.93,154.88,6.4566]
[1721120960768,6.4549,154.92,154.88,6.4566]
[1721120962689,6.4546,154.93,154.88,6.4566]
[1721120963581,47.7419,154.96,154.9,6.4557]
[1721120963582,21.6078,154.96,154.9,6.4557]
[1721120963772,6.4537,154.95,154.9,6.4557]
[1721120964091,10.0,154.95,154.87,16.1415]
[1721120964261,10.0,154.95,154.85,6.4574]
[1721120964463,6.4558,154.9,154.85,6.4574]
[1721120965201,10.0,154.93,154.84,16.1454]
[1721120966377,10.0,154.93,154.85,6.4578]
[1721120966620,6.455,154.92,154.86,16.1429]
[1721120966777,6.4553,154.91,154.87,6.457]
[1721120966985,6.455,154.92,154.87,6.457]
[1721120967185,6.4525,154.98,154.93,6.4541]
[1721120967375,15.2578,155.0,154.88,16.80025647]
[1721120967574,15.2578,155.0,154.92,16.1364]
[1721120967895,21.7094,155.0,154.95,6.4536]
[1721120968092,6.4512,155.01,154.96,6.4532]
[1721120968397,6.4512,155.01,154.94,16.1343]
[1721120968398,6.72896579,155.02,154.97,6.4528]
[1721120968987,6.4512,155.01,154.96,6.4531]
[1721120969295,6.72896579,155.02,154.97,17.84886883]
[1721120969599,6.72896579,155.02,155.01,6.4511]
[1721120970198,6.72896579,155.02,155.01,7.74112811]
[1721120970407,6.447,155.11,155.06,6.449]
[1721120970907,6.447,155.11,155.04,16.1246]
[1721120970908,6.447,155.11,155.05,6.4495]
[1721120971281,6.72777341,155.12,155.07,16.1211]
[1721120971482,10.0,155.2,155.08,6.4481]
[1721120971483,6.4458,155.14,155.08,6.4481]
[1721120972073,6.4463,155.13,155.07,16.1211]
[1721120972279,6.4466,155.12,155.07,16.1211]
[1721120972585,6.4471,155.11,155.06,6.2468]
[1721120973197,6.72638995,155.15,155.06,12.6957]
[1721120974273,6.447,155.11,155.06,12.6957]
[1721120974474,6.4464,155.13,155.07,6.4485]
[1721120974694,6.4464,155.13,155.08,6.4482]
[1721120974891,6.4466,155.12,155.07,6.4486]
[1721120975209,6.4466,155.12,155.06,28.8185]
[1721120975504,6.4472,155.11,155.06,22.3694]
[1721120975711,6.4466,155.12,155.06,28.8184]
[1721120976082,6.4466,155.12,155.07,6.4486]
[1721120976581,6.4462,155.13,155.07,6.4486]
[1721120976780,6.4462,155.13,155.07,7.73821142]
[1721120977005,6.4462,155.13,155.07,6.4486]
[1721120977416,6.4466,155.12,155.07,6.4486]
[1721120977587,6.4471,155.11,155.06,22.3694]
[1721120977999,6.4465,155.13,155.06,30.10808136]
[1721120978199,6.4466,155.12,155.06,28.8184]
[1721120978401,6.72638995,155.15,155.06,22.3694]
[1721120978402,32.83988995,155.15,155.06,22.3694]
[1721120978908,32.83988995,155.15,155.06,28.8184]
[1721120978909,22.83988995,155.15,155.06,28.8184]
[1721120979410,6.4471,155.11,155.06,22.3694]
[1721120979799,6.4474,155.1,155.06,6.2468]
[1721120980125,6.4479,155.09,155.06,6.2468]
[1721120980815,6.4484,155.08,155.03,16.1258]
[1721120981023,10.0,155.11,155.02,6.4876]
[1721120981194,26.1187,155.1,154.99,16.1294]
[1721120981396,6.4507,155.03,154.98,12.94]
[1721120981796,20.0,155.06,154.98,6.4876]
[1721120981993,26.73429102,155.06,154.98,6.4876]
[1721120982199,6.4508,155.02,154.98,6.4876]
[1721120983325,6.73429102,155.06,155.02,6.4506]
[1721120983506,6.4492,155.06,155.01,6.4511]
[1721120983692,16.1176,155.11,154.99,16.1293]
[1721120983892,6.73190525,155.09,155.01,6.4511]
[1721120984095,6.4494,155.06,155.01,6.4511]
[1721120984309,6.4498,155.05,155.0,6.4515]
[1721120984510,16.73190525,155.09,155.0,6.4515]
[1721120984511,6.4491,155.06,155.0,6.4515]
[1721120984694,6.45,155.04,154.99,22.5809]
[1721120985913,6.4508,155.02,154.98,6.4876]
[1721120986221,6.4508,155.02,154.96,16.1329]
[1721120987201,6.4512,155.01,154.96,22.5861]
[1721120987597,6.4508,155.02,154.97,6.4528]
[1721120989214,6.4512,155.01,154.96,22.5861]
[1721120989418,6.4508,155.02,154.97,6.4528]
[1721120989819,6.4504,155.03,154.98,6.4524]
[1721120990324,6.4508,155.02,154.96,22.5858]
[1721120990698,6.4508,155.02,154.97,6.4527]
[1721120991722,10.0,155.06,154.96,16.1329]
[1721120991723,6.4513,155.01,154.96,16.1329]
[1721120992221,6.4513,155.01,154.96,22.5861]
[1721120992431,10.0,155.04,154.97,6.4527]
[1721120992432,6.4507,155.02,154.97,6.4527]
[1721120992723,6.4512,155.01,154.96,22.5861]
[1721120994222,6.4512,155.01,154.96,16.1329]
[1721120994522,6.4508,155.02,154.97,6.4528]
[1721120994907,6.4513,155.01,154.96,22.5861]
[1721120995936,6.72611055,155.03,154.94,6.0357]
[1721120996232,6.4516,155.0,154.95,6.4533]
[1721120997105,6.4521,154.99,154.94,12.4898]
[1721121000007,6.4524,154.98,154.94,6.0357]
[1721121000623,6.452,154.99,154.94,12.4896]
[1721121000821,6.452,154.99,154.95,6.4536]
[1721121001022,6.452,154.99,154.94,12.4897]
[1721121003846,6.4525,154.98,154.94,6.0357]
[1721121004042,20.0,155.02,154.94,6.0357]
[1721121004238,6.4528,154.97,154.94,6.0357]
[1721121004757,6.4533,154.96,154.94,6.0357]
[1721121005124,6.4533,154.96,154.92,15.6331]
[1721121005319,6.4541,154.94,154.9,22.2662]
[1721121005937,6.4537,154.95,154.9,28.7219]
[1721121006443,6.4532,154.97,154.9,22.2662]
[1721121006646,6.4533,154.96,154.9,22.2662]
[1721121006944,6.4533,154.96,154.91,6.4552]
[1721121007328,6.4529,154.97,154.92,6.4549]
[1721121008050,6.4533,154.96,154.91,6.4552]
[1721121010854,6.4533,154.96,154.9,22.2662]
[1721121011055,6.4524,154.98,154.94,6.454]
[1721121011223,6.4524,154.98,154.92,16.1363]
[1721121011621,26.1289,155.01,154.92,16.1363]
[1721121011823,6.4533,154.96,154.92,22.5911]
[1721121012050,6.4529,154.97,154.92,22.5911]
[1721121012627,6.4521,154.99,154.94,6.454]
[1721121012969,6.72967142,155.03,154.93,1.29089429]
[1721121013128,6.4511,155.02,154.96,23.0176]
[1721121013459,13.17997142,155.03,154.97,6.123]
[1721121013767,10.0,155.04,154.97,6.123]
[1721121014053,6.4521,154.99,154.97,6.123]
[1721121014256,6.4521,154.99,154.96,16.5647]
[1721121014425,6.4516,155.0,154.96,16.5647]
[1721121014627,6.4522,154.99,154.94,6.454]
[1721121014852,6.4522,154.99,154.93,6.4826]
[1721121014853,6.4522,154.99,154.93,12.937]
[1721121015339,6.4522,154.99,154.94,6.4539]
[1721121015543,6.4516,155.0,154.94,6.4539]
[1721121015736,6.4516,155.0,154.95,6.4535]
[1721121016044,6.4511,155.02,154.96,6.4532]
[1721121016727,6.4511,155.02,154.97,6.4526]
[1721121017333,6.4511,155.02,154.96,6.4532]
[1721121017528,6.4504,155.03,154.97,16.1318]
[1721121017941,6.4504,155.03,154.97,22.5845]
[1721121018131,6.4508,155.02,154.97,22.5845]
[1721121018745,6.72904656,155.05,154.98,1.29049856]
[1721121018955,6.72904656,155.05,154.99,21.3319]
[1721121019330,6.72904656,155.05,155.0,17.41895226]
[1721121019671,15.9715,155.1,155.0,17.41895226]
[1721121019672,6.4491,155.06,155.01,6.4511]
[1721121020434,6.4486,155.08,155.03,6.4501]
[1721121020939,6.73161491,155.09,155.02,17.41623865]
[1721121021156,6.73161491,155.09,155.04,1.28997956]
[1721121021328,6.447,155.11,155.05,1.28970716]
[1721121021665,6.447,155.11,155.0,70.7166]
[1721121021666,6.447,155.11,155.01,1.28971424]
[1721121021875,6.447,155.11,155.02,1.28975396]
[1721121022157,6.73675908,155.12,155.06,22.1402]
[1721121022360,6.73675908,155.12,155.07,6.4486]
[1721121022663,6.4466,155.12,155.07,6.4486]
[1721121022838,16.73954921,155.15,155.06,22.1402]
[1721121023881,6.4479,155.09,155.06,6.339]
[1721121024073,6.4483,155.08,155.02,44.41]
[1721121024247,6.4487,155.07,155.02,44.41]
[1721121024862,6.4483,155.08,155.02,44.41]
[1721121025184,6.4477,155.1,155.04,6.4498]
[1721121026277,6.447,155.11,155.05,6.4493]
[1721121026880,6.4465,155.13,155.04,16.1239]
[1721121027054,6.4465,155.13,155.07,6.4484]
[1721121027249,16.73954921,155.15,155.07,16.1217]
[1721121027250,6.4458,155.14,155.07,16.1217]
[1721121028886,6.4458,155.14,155.09,6.4478]
[1721121029192,6.73954921,155.15,155.1,1.28946862]
[1721121029362,10.0,155.19,155.1,1.28946862]
[1721121029561,13.18391804,155.18,155.12,22.5629]
[1721121029763,6.4445,155.17,155.12,22.5629]
[1721121029968,6.4451,155.16,155.09,16.1194]
[1721121030168,6.4451,155.16,155.1,1.289268]
[1721121030377,6.4446,155.17,155.11,6.4469]
[1721121030892,13.18361804,155.18,155.12,6.4463]
[1721121031079,13.18361804,155.18,155.13,6.4461]
[1721121031471,6.73951804,155.18,155.14,6.4456]
[1721121031884,6.4436,155.2,155.14,6.4456]
[1721121032493,16.1043,155.24,155.13,16.1146]
[1721121032494,6.4416,155.24,155.18,6.444]
[1721121032674,6.4421,155.23,155.16,22.0216]
[1721121032869,6.4425,155.22,155.16,22.0216]
[1721121033074,6.74221863,155.24,155.16,22.0216]
[1721121033075,6.4428,155.21,155.16,22.0216]
[1721121033406,6.74221863,155.24,155.17,6.4441]
[1721121033571,6.74221863,155.24,155.16,28.4665]
[1721121033896,6.4429,155.21,155.16,28.4664]
[1721121034395,6.4429,155.21,155.16,22.0216]
[1721121034703,6.4427,155.22,155.16,28.4663]
[1721121035172,6.4427,155.22,155.17,6.4445]
[1721121035372,6.4427,155.22,155.16,22.0216]
[1721121035373,13.18411863,155.24,155.16,22.0216]
[1721121035585,6.4425,155.22,155.17,6.4445]
[1721121035803,6.4425,155.22,155.16,22.0216]
[1721121036007,13.18421863,155.24,155.16,22.0216]
[1721121036302,6.4422,155.23,155.17,6.4444]
[1721121036880,6.4425,155.22,155.16,28.4665]
[1721121037385,6.4429,155.21,155.16,22.0216]
[1721121038204,6.4425,155.22,155.16,28.4665]
[1721121039008,10.0,155.23,155.15,16.1124]
[1721121039199,6.4433,155.2,155.15,16.1124]
[1721121039506,6.4433,155.2,155.12,55.0588]
[1721121039507,10.0,155.21,155.12,22.8273]
[1721121039713,6.445,155.16,155.12,22.8273]
[1721121039886,6.4446,155.17,155.12,22.8273]
[1721121040087,6.4466,155.12,155.08,21.3644]
[1721121040794,10.0,155.15,155.05,6.4491]
[1721121040795,6.4473,155.11,155.05,6.4491]
[1721121040983,6.4482,155.09,155.04,27.8143]
[1721121041307,10.0,155.13,155.05,6.4494]
[1721121041483,6.4474,155.1,155.04,27.8143]
[1721121041684,6.4479,155.09,155.04,27.8143]
[1721121042399,6.4485,155.08,155.03,16.1252]
[1721121042710,6.4479,155.09,155.03,22.5754]
[1721121043003,6.4483,155.08,155.03,22.5754]
[1721121043216,6.4483,155.08,155.03,16.1252]
[1721121043512,6.4483,155.08,155.03,22.5755]
[1721121043701,6.4483,155.08,155.03,16.1252]
[1721121043904,16.7469261,155.11,155.03,22.5752]
[1721121044082,6.4479,155.09,155.03,22.5752]
[1721121044985,6.4482,155.08,155.03,22.5752]
[1721121045183,10.0,155.09,155.0,6.4022]
[1721121045518,6.4493,155.06,155.0,12.8537]
[1721121045890,6.4487,155.07,155.01,6.4511]
[1721121046220,16.7469261,155.11,155.02,6.4507]
[1721121046417,6.7469261,155.11,155.02,6.4507]
[1721121046920,6.4483,155.08,155.02,6.4507]
[1721121047135,6.4487,155.07,155.02,6.4507]
[1721121047295,6.4487,155.07,155.01,1.2900831]
[1721121047621,10.0,155.09,155.0,22.5302]
[1721121047793,6.4495,155.05,155.0,22.5302]
[1721121047988,6.4491,155.06,155.0,28.9817]
[1721121048196,10.0,155.09,155.01,6.4511]
[1721121048607,6.4491,155.07,155.01,6.4511]
[1721121049117,6.4491,155.06,155.0,28.9817]
[1721121049531,10.0,155.09,155.0,6.4022]
[1721121050020,6.4512,155.01,154.96,22.5859]
[1721121050489,6.4507,155.02,154.96,22.5859]
[1721121051621,6.4503,155.03,154.97,6.4527]
[1721121052723,26.122,155.07,154.98,6.4523]
[1721121052925,20.0,155.09,154.99,16.1299]
[1721121053136,6.4491,155.06,155.0,6.4512]
[1721121053419,6.4487,155.07,155.02,6.4506]
[1721121053596,6.4487,155.07,155.01,6.4511]
[1721121054225,6.4487,155.07,155.02,6.4507]
[1721121054411,6.4487,155.07,155.01,6.4511]
[1721121054610,6.4493,155.06,155.0,6.4515]
[1721121055026,13.18332736,155.08,155.01,6.451]
[1721121055198,6.4489,155.07,155.01,6.451]
[1721121055617,6.4492,155.06,155.01,6.451]
[1721121055828,6.4487,155.07,155.02,6.4507]
[1721121056605,6.4491,155.06,155.0,6.4512]
[1721121057022,6.4491,155.06,155.01,6.4509]
[1721121057329,6.4487,155.07,155.01,6.4509]
[1721121057625,6.4491,155.06,155.01,6.4509]
[1721121058913,6.4487,155.07,155.01,6.4509]
[1721121059925,6.4487,155.07,155.02,15.0711]
[1721121060105,13.18302736,155.08,155.03,12.8294]
[1721121060543,6.4488,155.07,155.03,6.3792]
[1721121061130,6.4487,155.07,155.03,6.3792]
[1721121061650,6.4492,155.06,155.03,6.3792]
[1721121062160,6.4499,155.04,155.02,15.0711]
[1721121062521,6.4503,155.03,155.0,6.6632]
[1721121062719,6.4504,155.03,155.0,6.6632]
[1721121063119,6.45,155.04,155.0,6.6632]
[1721121063341,6.4499,155.04,155.0,6.6632]
[1721121063539,10.0,155.07,154.98,31.5873]
[1721121063742,20.0,155.07,154.98,31.5873]
[1721121063945,6.4504,155.03,154.98,31.5873]
[1721121064130,10.0,155.05,154.98,15.4571]
[1721121064333,10.0,155.05,154.96,6.6632]
[1721121064334,6.4512,155.01,154.96,6.6632]
[1721121065220,10.0,155.02,154.94,15.4571]
[1721121065445,6.4532,154.96,154.92,22.2845]
[1721121065625,6.4532,154.97,154.92,22.2845]
[1721121065830,6.4525,154.98,154.92,28.7394]
[1721121066026,64.5478,155.02,154.92,28.7393]
[1721121066651,6.4524,154.98,154.93,6.4544]
[1721121066833,6.4524,154.98,154.92,28.7394]
[1721121067038,6.4529,154.97,154.92,28.7394]
[1721121067242,6.4529,154.97,154.92,22.2845]
[1721121067444,6.4532,154.96,154.92,22.2845]
[1721121067631,6.4529,154.97,154.92,22.2845]
[1721121067836,6.452,154.99,154.93,7.74533257]
[1721121068152,54.5478,155.02,154.94,6.454]
[1721121068355,16.74389705,155.03,154.95,6.4536]
[1721121068356,6.4515,155.01,154.95,6.4536]
[1721121068653,6.4508,155.02,154.96,6.4532]
[1721121068962,6.4513,155.01,154.96,6.4532]
[1721121069252,13.19449705,155.03,154.97,6.4527]
[1721121070853,6.4507,155.02,154.97,6.4527]
[1721121071034,6.4507,155.02,154.96,6.4532]
[1721121071239,6.74389705,155.03,154.95,16.1336]
[1721121071641,6.4516,155.0,154.95,16.1336]
[1721121072961,6.4512,155.01,154.95,16.1336]
[1721121073251,6.4512,155.01,154.96,1.29047592]
[1721121073453,6.4512,155.01,154.95,16.1336]
[1721121073957,6.74389705,155.03,154.95,16.1336]
[1721121074947,6.4508,155.02,154.96,6.4529]
[1721121075845,6.74389705,155.03,154.98,15.144]
[1721121076047,6.74389705,155.03,155.0,12.6229]
[1721121076253,26.12,155.09,155.0,6.1715]
[1721121076552,6.45,155.04,155.0,6.1715]
[1721121077066,6.4504,155.03,155.0,6.1715]
[1721121077460,6.4508,155.02,155.0,6.1715]
[1721121077656,6.4511,155.01,155.0,6.1715]
[1721121078561,6.4516,155.0,154.98,15.144]
[1721121078768,6.4512,155.01,154.98,15.144]
[1721121079149,6.4504,155.03,154.98,21.5963]
[1721121079453,32.85516338,155.07,155.0,6.4514]
[1721121079454,6.73266338,155.07,155.0,6.4514]
[1721121079761,6.73266338,155.07,154.99,16.1297]
[1721121080067,6.73266338,155.07,154.99,23.87165558]
[1721121080468,6.4496,155.05,155.0,6.4514]
[1721121081167,6.4496,155.05,154.99,22.5816]
[1721121081470,6.4496,155.05,155.0,1.29016253]
[1721121081674,13.18166338,155.07,155.0,1.29016253]
[1721121081968,6.73266338,155.07,155.0,6.4515]
[1721121082346,6.4498,155.05,155.0,6.4515]
[1721121082745,6.4498,155.05,155.0,7.7416265]
[1721121083064,6.4491,155.06,155.01,6.4511]
[1721121083263,6.73266338,155.07,155.01,6.4511]
[1721121083264,6.73266338,155.07,155.02,6.0728]
[1721121083773,6.45,155.04,155.02,6.0728]
[1721121084469,6.4503,155.03,154.98,31.2748]
[1721121084770,6.4503,155.03,154.98,37.5958]
[1721121084970,6.4509,155.02,154.98,21.465]
[1721121085351,6.4503,155.03,154.98,27.9174]
[1721121085665,6.45,155.04,154.98,27.9174]
[1721121085872,6.4504,155.03,154.98,27.9174]
[1721121086782,6.4499,155.04,154.98,27.9174]
[1721121086957,6.4499,155.04,154.99,6.4518]
[1721121087452,6.73266338,155.07,154.98,22.75529571]
[1721121087453,6.4503,155.03,154.98,21.465]
[1721121087653,6.4511,155.01,154.98,21.465]
[1721121087848,26.1245,155.05,154.98,21.465]
[1721121088048,6.452,154.99,154.98,6.321]
[1721121088260,6.72971778,155.04,155.01,6.4511]
[1721121088553,6.72971778,155.04,155.03,6.4503]
[1721121088764,6.4499,155.04,154.99,6.4519]
[1721121088971,6.72872743,155.06,154.99,6.4519]
[1721121089173,6.4499,155.04,154.98,28.9036]
[1721121089472,6.72872743,155.06,155.01,6.4511]
[1721121089669,6.72872743,155.06,155.02,16.2506]
[1721121091077,6.45,155.04,155.02,16.2506]
[1721121091381,6.72872743,155.06,154.98,38.5992]
[1721121091549,6.72872743,155.06,154.98,6.321]
[1721121091550,6.4512,155.01,154.98,6.321]
[1721121091746,6.452,154.99,154.94,44.7827]
[1721121092181,6.452,154.99,154.94,38.329]
[1721121092351,10.0,155.03,154.94,22.1947]
[1721121092352,6.4524,154.98,154.94,22.1947]
[1721121093077,6.4532,154.96,154.94,6.0467]
[1721121093374,10.0,155.0,154.94,6.0467]
[1721121093375,6.4528,154.97,154.94,6.0467]
[1721121093576,6.4524,154.98,154.94,6.0467]
[1721121094777,10.0,155.0,154.94,6.0467]
[1721121094778,6.4529,154.97,154.94,6.0467]
[1721121096080,6.4522,154.99,154.94,6.0467]
[1721121096480,10.0,155.05,154.97,6.4527]
[1721121096651,10.0,155.05,154.95,6.4533]
[1721121096652,6.4512,155.01,154.95,6.4533]
[1721121097071,6.4517,155.0,154.94,28.6354]
[1721121097271,10.0,155.03,154.94,22.1814]
[1721121097878,6.4521,154.99,154.94,22.1814]
[1721121098860,16.1257,155.04,154.94,23.47211251]
[1721121099181,6.4512,155.01,154.95,6.4536]
[1721121099367,6.4516,155.0,154.95,7.7441817]
[1721121100684,6.4521,154.99,154.94,22.1814]
[1721121101766,6.4521,154.99,154.94,28.6354]
[1721121102671,6.4512,155.01,154.95,1.29059407]
[1721121102983,6.72316773,155.04,154.96,15.0503]
[1721121103171,11.36639964,155.03,154.97,6.4525]
[1721121103379,6.4504,155.03,154.97,6.4525]
[1721121103760,6.4509,155.02,154.97,6.4525]
[1721121103967,6.4509,155.02,154.96,37.6358]
[1721121104159,6.4513,155.01,154.96,37.6358]
[1721121104386,6.4513,155.01,154.96,31.1827]
[1721121105291,6.4516,155.0,154.96,31.1827]
[1721121105485,6.4516,155.0,154.96,15.0503]
[1721121106272,6.4512,155.01,154.96,15.0503]
[1721121106805,6.4508,155.02,154.96,22.79385137]
[1721121107002,6.4508,155.02,154.97,6.4528]
[1721121107486,6.4513,155.01,154.96,22.79395137]
[1721121107685,6.4513,155.01,154.96,16.34085137]
[1721121107884,6.4508,155.02,154.96,22.79375137]
[1721121108094,6.4508,155.02,154.97,6.4527]
[1721121109388,6.72316773,155.04,154.96,15.0503]
[1721121109709,6.4504,155.03,154.98,6.4522]
[1721121110398,6.4508,155.02,154.97,16.1314]
[1721121112080,6.4504,155.03,154.98,6.4523]
[1721121113183,6.72316773,155.04,155.0,6.2204]
[1721121113498,6.4498,155.05,155.0,6.2204]
[1721121114209,6.4501,155.04,155.0,6.2204]
[1721121114901,6.4496,155.05,155.01,1.29011097]
[1721121116678,13.17491704,155.07,155.02,21.6016]
[1721121117001,13.17451704,155.07,155.03,1.28982665]
[1721121117182,6.72581704,155.07,155.02,15.1511]
[1721121117377,6.4496,155.05,155.02,15.1511]
[1721121117591,6.72581704,155.07,155.02,15.1511]
[1721121117900,6.45,155.04,155.02,15.1511]
[1721121118284,6.4496,155.05,155.02,15.1511]
[1721121118479,6.4491,155.06,155.02,16.44110996]
[1721121119185,6.4491,155.06,155.02,15.1511]
[1721121119385,6.4491,155.06,155.02,16.44107714]
[1721121120102,6.72581704,155.07,155.02,15.1511]
[1721121120393,4.91480875,155.06,155.0,6.2204]
[1721121120612,4.91535918,155.05,154.98,15.6596]
[1721121120915,6.4512,155.01,154.98,15.6596]
[1721121121127,6.4508,155.02,154.98,15.6596]
[1721121121629,38.45,155.06,154.98,15.6596]
[1721121121819,6.4508,155.02,154.98,15.6596]